fUSD/lending_fUSD_20250609
["ID","MTS","AMOUNT","RATE_DAILY","PERIOD"]
[365053202,1749427869929,-514.83,0.0001968,2]
[365053203,1749427869938,-485.84409946,0.0001968,2]
[365053204,1749427869948,-480.0,0.0001968,2]
[365053205,1749427869958,-480.0,0.0001968,2]
[365053206,1749427869967,-166.10878758,0.0001968,2]
[365053207,1749427869977,-480.0,0.0001968,2]
[365053208,1749427869986,-480.0,0.0001968,2]
[365053209,1749427869996,-480.0,0.0001968,2]
[365053210,1749427870005,-480.0,0.0001968,2]
[365053211,1749427870015,-480.0,0.0001968,2]
[365053212,1749427870024,-480.0,0.0001968,2]
[365053213,1749427870033,-480.0,0.0001968,2]
[365053214,1749427870042,-480.0,0.0001968,2]
[365053215,1749427870052,-480.0,0.0001968,2]
[365053216,1749427870061,-1015.18,0.0001968,2]
[365053217,1749427870070,-480.0,0.0001968,2]
[365053218,1749427870079,-480.0,0.0001968,2]
[365053219,1749427870089,-480.0,0.0001968,2]
[365053220,1749427870097,-510.48,0.0001968,2]
[365053221,1749427870107,-480.0,0.0001968,2]
[365053222,1749427870117,-480.0,0.0001968,2]
[365053223,1749427870126,-549.87,0.0001968,2]
[365053224,1749427870136,-480.0,0.0001968,2]
[365053225,1749427870146,-480.0,0.0001968,2]
[365053226,1749427870155,-524.49,0.0001968,2]
[365053227,1749427870164,-480.0,0.0001968,2]
[365053228,1749427870174,-480.0,0.0001968,2]
[365053229,1749427870183,-480.0,0.0001968,2]
[365053230,1749427870192,-480.0,0.0001968,2]
[365053231,1749427870201,-522.38,0.0001968,2]
[365053232,1749427870210,-480.0,0.0001968,2]
[365053233,1749427870220,-480.0,0.0001968,2]
[365053234,1749427870229,-480.0,0.0001968,2]
[365053235,1749427870238,-208.08475852,0.0001968,2]
[365053236,1749427870247,-480.0,0.0001968,2]
[365053237,1749427870256,-1024.3,0.0001968,2]
[365053238,1749427870265,-480.0,0.0001968,2]
[365053239,1749427870274,-480.0,0.0001968,2]
[365053240,1749427870284,-530.22,0.0001968,2]
[365053241,1749427870294,-480.0,0.0001968,2]
[365053242,1749427870303,-480.0,0.0001968,2]
[365053243,1749427870312,-480.0,0.0001968,2]
[365053244,1749427870321,-507.75,0.0001968,2]
[365053245,1749427870330,-389.13404856,0.0001968,2]
[365053246,1749427870339,-480.0,0.0001968,2]
[365053247,1749427870348,-620.47,0.0001968,2]
[365053248,1749427870358,-694.69,0.0001968,2]
[365053249,1749427870367,-757.81,0.0001968,2]
[365053250,1749427870376,-480.0,0.0001968,2]
[365053251,1749427870385,-480.0,0.0001968,2]
[365053252,1749427870395,-1907.22,0.0001968,2]
[365053253,1749427870404,-480.0,0.0001968,2]
[365053254,1749427870413,-731.25,0.0001968,2]
[365053255,1749427870422,-480.0,0.0001968,2]
[365053256,1749427870431,-1257.91,0.0001968,2]
[365053257,1749427870440,-667.25,0.0001968,2]
[365053258,1749427870450,-257.19713093,0.0001968,2]
[365053259,1749427870460,-625.23,0.0001968,2]
[365053260,1749427870469,-480.0,0.0001968,2]
[365053261,1749427870479,-480.0,0.0001968,2]
[365053262,1749427870489,-584.97,0.0001968,2]
[365053263,1749427870498,-665.04,0.0001968,2]
[365053264,1749427870507,-480.0,0.0001968,2]
[365053265,1749427870517,-922.23,0.0001968,2]
[365053266,1749427870527,-480.0,0.0001968,2]
[365053267,1749427870536,-4762.67,0.0001968,2]
[365053268,1749427870546,-626.04,0.0001968,2]
[365053269,1749427870555,-480.0,0.0001968,2]
[365053270,1749427870565,-918.36,0.0001968,2]
[365053271,1749427870574,-556.85,0.0001968,2]
[365053272,1749427870583,-300.0,0.0001968,2]
[365053273,1749427870592,-516.91,0.0001968,2]
[365053274,1749427870602,-480.0,0.0001968,2]
[365053275,1749427870612,-299.86174143,0.0001968,2]
[365053276,1749427870622,-634.6,0.0001968,2]
[365053277,1749427870631,-300.0,0.0001968,2]
[365053278,1749427870640,-743.22,0.0001968,2]
[365053279,1749427870649,-480.0,0.0001968,2]
[365053280,1749427870659,-875.91,0.0001968,2]
[365053281,1749427870669,-480.0,0.0001968,2]
[365053282,1749427870679,-589.96,0.0001968,2]
[365053283,1749427870689,-300.0,0.0001968,2]
[365053284,1749427870698,-480.0,0.0001968,2]
[365053285,1749427870708,-480.0,0.0001968,2]
[365053286,1749427870718,-480.0,0.0001968,2]
[365053287,1749427870728,-480.0,0.0001968,2]
[365053288,1749427870737,-1146.57,0.0001968,2]
[365053289,1749427870747,-480.0,0.0001968,2]
[365053290,1749427870762,-986.46,0.0001968,2]
[365053291,1749427870772,-582.68,0.0001968,2]
[365053292,1749427870782,-954.83,0.0001968,2]
[365053293,1749427870792,-480.0,0.0001968,2]
[365053294,1749427870803,-480.0,0.0001968,2]
[365053295,1749427870812,-1075.19,0.0001968,2]
[365053296,1749427870822,-480.0,0.0001968,2]
[365053297,1749427870832,-480.0,0.0001968,2]
[365053298,1749427870842,-663.56,0.0001968,2]
[365053299,1749427870852,-577.91,0.0001968,2]
[365053300,1749427870863,-984.98,0.0001968,2]
[365053301,1749427870873,-686.31,0.0001968,2]
[365053302,1749427870883,-1104.14,0.0001968,2]
[365053303,1749427870892,-245.51653398,0.0001968,2]
[365053304,1749427870902,-480.0,0.0001968,2]
[365053305,1749427870912,-919.63,0.0001968,2]
[365053306,1749427870922,-480.0,0.0001968,2]
[365053307,1749427870932,-575.12,0.0001968,2]
[365053308,1749427870942,-1497.65,0.0001968,2]
[365053309,1749427870951,-480.0,0.0001968,2]
[365053310,1749427870961,-480.0,0.0001968,2]
[365053311,1749427870970,-539.01,0.0001968,2]
[365053312,1749427870979,-480.0,0.0001968,2]
[365053313,1749427871113,-814.01,0.0001968,2]
[365053314,1749427871122,-933.84,0.0001968,2]
[365053315,1749427871132,-618.59,0.0001968,2]
[365053316,1749427871141,-1727.89,0.0001968,2]
[365053317,1749427871150,-480.0,0.0001968,2]
[365053318,1749427871160,-480.0,0.0001968,2]
[365053319,1749427871169,-481.04,0.0001968,2]
[365053320,1749427871178,-2360.84,0.0001968,2]
[365053321,1749427871188,-300.0,0.0001968,2]
[365053322,1749427871197,-480.0,0.0001968,2]
[365053323,1749427871206,-480.0,0.00019681,2]
[365053324,1749427871215,-483.56,0.00019681,2]
[365053325,1749427871224,-480.0,0.00019681,2]
[365053326,1749427871234,-480.0,0.00019681,2]
[365053327,1749427871243,-480.0,0.00019681,2]
[365053328,1749427871252,-480.0,0.00019681,2]
[365053329,1749427871261,-480.0,0.00019681,2]
[365053330,1749427871270,-300.0,0.00019681,2]
[365053331,1749427871279,-480.0,0.00019681,2]
[365053332,1749427871289,-480.0,0.00019681,2]
[365053333,1749427871298,-480.0,0.00019681,2]
[365053334,1749427871307,-480.0,0.00019681,2]
[365053335,1749427871317,-480.0,0.00019681,2]
[365053336,1749427871326,-480.0,0.00019681,2]
[365053337,1749427871336,-480.0,0.00019681,2]
[365053338,1749427871345,-480.0,0.00019681,2]
[365053339,1749427871356,-480.0,0.00019681,2]
[365053340,1749427871366,-531.54,0.00019681,2]
[365053341,1749427871375,-480.0,0.00019681,2]
[365053342,1749427871384,-480.0,0.00019681,2]
[365053343,1749427871394,-480.0,0.00019681,2]
[365053344,1749427871403,-480.0,0.00019681,2]
[365053345,1749427871412,-480.0,0.00019681,2]
[365053346,1749427871422,-480.0,0.00019681,2]
[365053347,1749427871431,-480.0,0.00019681,2]
[365053348,1749427871441,-480.0,0.00019681,2]
[365053349,1749427871450,-480.0,0.00019681,2]
[365053350,1749427871459,-480.0,0.00019681,2]
[365053351,1749427871469,-480.0,0.00019681,2]
[365053352,1749427871478,-480.0,0.00019681,2]
[365053353,1749427871488,-579.71697459,0.00019681,2]
[365053354,1749427871498,-480.0,0.00019681,2]
[365053355,1749427871508,-480.0,0.00019681,2]
[365053356,1749427871519,-451.42906539,0.00019681,2]
[365053357,1749427871528,-610.9,0.00019681,2]
[365053358,1749427871538,-480.0,0.00019681,2]
[365053359,1749427871547,-480.0,0.00019681,2]
[365053360,1749427871556,-588.66503677,0.00019681,2]
[365053361,1749427871566,-480.0,0.00019681,2]
[365053362,1749427871576,-480.0,0.00019681,2]
[365053363,1749427871585,-300.0,0.00019681,2]
[365053364,1749427871595,-480.0,0.00019681,2]
[365053365,1749427871605,-516.58,0.00019681,2]
[365053366,1749427871615,-480.0,0.00019681,2]
[365053367,1749427871625,-480.0,0.00019681,2]
[365053368,1749427871634,-480.0,0.00019681,2]
[365053369,1749427871644,-538.68,0.00019681,2]
[365053370,1749427871654,-480.0,0.00019681,2]
[365053371,1749427871664,-1954.47,0.00019681,2]
[365053372,1749427871674,-480.0,0.00019681,2]
[365053373,1749427871684,-480.0,0.00019681,2]
[365053374,1749427871693,-480.0,0.00019681,2]
[365053375,1749427871703,-480.0,0.00019681,2]
[365053376,1749427871713,-480.0,0.00019681,2]
[365053377,1749427871722,-480.0,0.00019681,2]
[365053378,1749427871731,-480.0,0.00019681,2]
[365053379,1749427871741,-480.0,0.00019681,2]
[365053380,1749427871751,-480.0,0.00019681,2]
[365053381,1749427871764,-300.0,0.00019681,2]
[365053382,1749427871773,-446.19456775,0.00019681,2]
[365053383,1749427871784,-480.0,0.00019681,2]
[365053384,1749427871795,-300.0,0.00019681,2]
[365053385,1749427871804,-480.0,0.00019681,2]
[365053386,1749427871813,-648.05,0.00019681,2]
[365053387,1749427871823,-480.0,0.00019681,2]
[365053388,1749427871832,-672.63,0.00019681,2]
[365053389,1749427871843,-480.0,0.00019681,2]
[365053390,1749427871852,-480.0,0.00019681,2]
[365053391,1749427871863,-480.0,0.00019681,2]
[365053392,1749427871873,-666.1,0.00019681,2]
[365053393,1749427871883,-480.0,0.00019681,2]
[365053394,1749427871892,-480.0,0.00019681,2]
[365053395,1749427871903,-480.0,0.00019681,2]
[365053396,1749427871913,-809.76,0.00019681,2]
[365053397,1749427871923,-480.0,0.00019681,2]
[365053398,1749427871933,-480.0,0.00019681,2]
[365053399,1749427871942,-480.0,0.00019681,2]
[365053400,1749427871952,-480.0,0.00019681,2]
[365053401,1749427871962,-480.0,0.00019681,2]
[365053402,1749427871971,-480.0,0.00019681,2]
[365053403,1749427871981,-480.0,0.00019681,2]
[365053404,1749427871991,-480.0,0.00019681,2]
[365053405,1749427872009,-480.0,0.00019681,2]
[365053406,1749427872022,-585.97,0.00019681,2]
[365053407,1749427872032,-300.0,0.00019681,2]
[365053408,1749427872042,-866.26,0.00019681,2]
[365053409,1749427872054,-300.0,0.00019681,2]
[365053410,1749427872064,-559.86,0.00019681,2]
[365053411,1749427872075,-480.0,0.00019681,2]
[365053412,1749427872085,-480.0,0.00019681,2]
[365053413,1749427872095,-480.0,0.00019681,2]
[365053414,1749427872105,-300.0,0.00019681,2]
[365053415,1749427872116,-480.0,0.00019681,2]
[365053416,1749427872126,-505.14,0.00019681,2]
[365053417,1749427872136,-480.0,0.00019681,2]
[365053418,1749427872146,-480.0,0.00019681,2]
[365053419,1749427872157,-480.0,0.00019681,2]
[365053420,1749427872167,-300.0,0.00019681,2]
[365053421,1749427872177,-480.0,0.00019681,2]
[365053422,1749427872188,-480.0,0.00019681,2]
[365053423,1749427872198,-519.01,0.00019681,2]
[365053424,1749427872209,-1258.9,0.00019681,2]
[365053425,1749427872219,-480.0,0.00019681,2]
[365053426,1749427872229,-563.07,0.00019681,2]
[365053427,1749427872239,-631.72,0.00019681,2]
[365053428,1749427872249,-480.0,0.00019681,2]
[365053429,1749427872258,-487.95,0.00019681,2]
[365053430,1749427872268,-526.48,0.00019681,2]
[365053431,1749427872278,-895.53,0.00019681,2]
[365053432,1749427872287,-691.91,0.00019681,2]
[365053433,1749427872297,-1013.38,0.00019681,2]
[365053434,1749427872308,-480.0,0.00019681,2]
[365053435,1749427872318,-522.65,0.00019681,2]
[365053436,1749427872328,-480.0,0.00019681,2]
[365053437,1749427872337,-480.0,0.00019681,2]
[365053438,1749427872347,-644.32,0.00019681,2]
[365053439,1749427872359,-156.42,0.00019681,2]
[365053440,1749427872368,-551.92,0.00019681,2]
[365053441,1749427872378,-582.88,0.00019681,2]
[365053442,1749427872388,-480.0,0.00019681,2]
[365053443,1749427872398,-480.0,0.00019681,2]
[365053444,1749427872408,-156.587,0.00019726,2]
[365053445,1749427872418,-150.0,0.00019735,2]
[365053446,1749427872427,-150.0,0.00019745,2]
[365053447,1749427872437,-150.0,0.00019759,2]
[365053448,1749427872447,-150.0,0.0001977,4]
[365053449,1749427872457,-150.0,0.00019786,2]
[365053450,1749427872466,-150.0,0.00019789,2]
[365053451,1749427872476,-150.0,0.0001979,2]
[365053452,1749427872486,-150.0,0.00019794,2]
[365053453,1749427872495,-2322.43425576,0.00019797,2]
[365053454,1749427872504,-1132.98,0.000198,30]
[365053455,1749427872514,-250.0,0.000198,2]
[365053456,1749427872525,-150.0,0.00019803,2]
[365053457,1749427872536,-1000.0,0.0001982,2]
[365053458,1749427872545,-480.0,0.00019844,2]
[365053459,1749427872555,-480.0,0.00019844,2]
[365053460,1749427872565,-480.0,0.00019844,2]
[365053461,1749427872575,-480.0,0.00019844,2]
[365053462,1749427872585,-480.0,0.00019844,2]
[365053463,1749427872595,-859.25,0.00019844,2]
[365053464,1749427872605,-480.0,0.00019844,2]
[365053465,1749427872616,-227.3847899,0.00019844,2]
[365053466,1749427872626,-480.0,0.00019844,2]
[365053467,1749427872636,-480.0,0.00019844,2]
[365053468,1749427872646,-480.0,0.00019844,2]
[365053469,1749427872656,-480.0,0.00019844,2]
[365053470,1749427872666,-691.74,0.00019844,2]
[365053471,1749427872676,-480.0,0.00019844,2]
[365053472,1749427872686,-256.34,0.00019844,2]
[365053473,1749427872696,-480.0,0.00019844,2]
[365053474,1749427872706,-1304.9,0.00019844,2]
[365053475,1749427872716,-480.0,0.00019844,2]
[365053476,1749427872726,-480.0,0.00019844,2]
[365053477,1749427872736,-550.46,0.00019844,2]
[365053478,1749427872746,-480.0,0.00019844,2]
[365053479,1749427872759,-480.0,0.00019844,2]
[365053480,1749427872769,-573.28,0.00019844,2]
[365053481,1749427872779,-846.62,0.00019844,2]
[365053482,1749427872790,-480.0,0.00019844,2]
[365053483,1749427872799,-480.0,0.00019844,2]
[365053484,1749427872811,-480.0,0.00019844,2]
[365053485,1749427872822,-1165.27,0.00019844,2]
[365053486,1749427872833,-360.0,0.00019844,2]
[365053487,1749427872843,-480.0,0.00019844,2]
[365053488,1749427872853,-480.0,0.00019844,2]
[365053489,1749427872865,-575.23,0.00019844,2]
[365053490,1749427872875,-599.95,0.00019844,2]
[365053491,1749427872885,-970.64,0.00019844,2]
[365053492,1749427872895,-587.24,0.00019844,2]
[365053493,1749427872906,-480.0,0.00019844,2]
[365053494,1749427872916,-480.0,0.00019844,2]
[365053495,1749427872928,-746.73,0.00019844,2]
[365053496,1749427872938,-500.89362788,0.00019844,2]
[365053497,1749427872948,-499.38,0.00019844,2]
[365053498,1749427872959,-432.21,0.00019844,2]
[365053499,1749427872968,-480.0,0.00019844,2]
[365053500,1749427872978,-480.0,0.00019844,2]
[365053501,1749427872989,-608.12,0.00019844,2]
[365053502,1749427872999,-420.0,0.00019844,2]
[365053503,1749427873009,-480.0,0.00019844,2]
[365053504,1749427873019,-480.0,0.00019844,2]
[365053505,1749427873029,-480.0,0.00019844,2]
[365053506,1749427873040,-480.0,0.00019844,2]
[365053507,1749427873049,-480.0,0.00019844,2]
[365053508,1749427873059,-480.0,0.00019844,2]
[365053509,1749427873068,-480.0,0.00019844,2]
[365053510,1749427873079,-541.18,0.00019844,2]
[365053511,1749427873089,-181.15,0.00019844,2]
[365053512,1749427873099,-480.0,0.00019844,2]
[365053513,1749427873110,-480.0,0.00019844,2]
[365053514,1749427873120,-480.0,0.00019844,2]
[365053515,1749427873130,-480.0,0.00019844,2]
[365053516,1749427873140,-656.77,0.00019844,2]
[365053517,1749427873150,-480.0,0.00019844,2]
[365053518,1749427873161,-514.83,0.00019844,2]
[365053519,1749427873171,-480.0,0.00019844,2]
[365053520,1749427873180,-480.0,0.00019844,2]
[365053521,1749427873190,-480.0,0.00019844,2]
[365053522,1749427873199,-480.0,0.00019844,2]
[365053523,1749427873210,-480.0,0.00019844,2]
[365053524,1749427873221,-480.0,0.00019844,2]
[365053525,1749427873231,-480.0,0.00019844,2]
[365053526,1749427873241,-480.0,0.00019844,2]
[365053527,1749427873251,-480.0,0.00019844,2]
[365053528,1749427873261,-313.00900095,0.00019844,2]
[365053529,1749427873271,-480.0,0.00019844,2]
[365053530,1749427873281,-1015.18,0.00019844,2]
[365053531,1749427873290,-221.77343541,0.00019844,2]
[365053532,1749427873300,-480.0,0.00019844,2]
[365053533,1749427873310,-510.48,0.00019844,2]
[365053534,1749427873319,-480.0,0.00019844,2]
[365053535,1749427873330,-480.0,0.00019844,2]
[365053536,1749427873340,-549.87,0.00019844,2]
[365053537,1749427873502,-480.0,0.00019844,2]
[365053538,1749427873513,-532.24,0.00019844,2]
[365053539,1749427873523,-524.49,0.00019844,2]
[365053540,1749427873533,-291.19300015,0.00019844,2]
[365053541,1749427873543,-480.0,0.00019844,2]
[365053542,1749427873553,-480.0,0.00019844,2]
[365053543,1749427873563,-480.0,0.00019844,2]
[365053544,1749427873573,-522.38,0.00019844,2]
[365053545,1749427873582,-480.0,0.00019844,2]
[365053546,1749427873591,-480.0,0.00019844,2]
[365053547,1749427873601,-480.0,0.00019844,2]
[365053548,1749427873611,-480.0,0.00019844,2]
[365053549,1749427873621,-1024.3,0.00019844,2]
[365053550,1749427873631,-480.0,0.00019844,2]
[365053551,1749427873642,-480.0,0.00019844,2]
[365053552,1749427873651,-530.22,0.00019844,2]
[365053553,1749427873661,-422.83079621,0.00019844,2]
[365053554,1749427873671,-480.0,0.00019844,2]
[365053555,1749427873680,-480.0,0.00019844,2]
[365053556,1749427873690,-507.75,0.00019844,2]
[365053557,1749427873699,-480.0,0.00019844,2]
[365053558,1749427873709,-620.47,0.00019844,2]
[365053559,1749427873719,-694.69,0.00019844,2]
[365053560,1749427873729,-757.81,0.00019844,2]
[365053561,1749427873738,-480.0,0.00019844,2]
[365053562,1749427873747,-480.0,0.00019844,2]
[365053563,1749427873760,-1907.22,0.00019844,2]
[365053564,1749427873770,-480.0,0.00019844,2]
[365053565,1749427873779,-731.25,0.00019844,2]
[365053566,1749427873789,-480.0,0.00019844,2]
[365053567,1749427873799,-1257.91,0.00019844,2]
[365053568,1749427873807,-667.25,0.00019844,2]
[365053569,1749427873817,-625.23,0.00019844,2]
[365053570,1749427873827,-480.0,0.00019844,2]
[365053571,1749427873837,-351.4349851,0.00019844,2]
[365053572,1749427873847,-584.97,0.00019844,2]
[365053573,1749427873857,-665.04,0.00019844,2]
[365053574,1749427873867,-480.0,0.00019844,2]
[365053575,1749427873876,-922.23,0.00019844,2]
[365053576,1749427873886,-480.0,0.00019844,2]
[365053577,1749427873896,-4762.67,0.00019844,2]
[365053578,1749427873906,-626.04,0.00019844,2]
[365053579,1749427873915,-480.0,0.00019844,2]
[365053580,1749427873925,-918.36,0.00019844,2]
[365053581,1749427873935,-556.85,0.00019844,2]
[365053582,1749427873944,-516.91,0.00019844,2]
[365053583,1749427873954,-480.0,0.00019844,2]
[365053584,1749427873964,-634.6,0.00019844,2]
[365053585,1749427873973,-743.22,0.00019844,2]
[365053586,1749427873983,-480.0,0.00019844,2]
[365053587,1749427873993,-875.91,0.00019844,2]
[365053588,1749427874002,-480.0,0.00019844,2]
[365053589,1749427874012,-589.96,0.00019844,2]
[365053590,1749427874022,-480.0,0.00019844,2]
[365053591,1749427874031,-480.0,0.00019844,2]
[365053592,1749427874041,-480.0,0.00019844,2]
[365053593,1749427874050,-434.29581401,0.00019844,2]
[365053594,1749427874060,-1146.57,0.00019844,2]
[365053595,1749427874070,-986.46,0.00019844,2]
[365053596,1749427874079,-582.68,0.00019844,2]
[365053597,1749427874089,-954.83,0.00019844,2]
[365053598,1749427874098,-480.0,0.00019844,2]
[365053599,1749427874109,-480.0,0.00019844,2]
[365053600,1749427874118,-1075.19,0.00019844,2]
[365053601,1749427874128,-480.0,0.00019844,2]
[365053602,1749427874139,-480.0,0.00019844,2]
[365053603,1749427874149,-663.56,0.00019844,2]
[365053604,1749427874159,-577.91,0.00019844,2]
[365053605,1749427874169,-984.98,0.00019844,2]
[365053606,1749427874178,-686.31,0.00019844,2]
[365053607,1749427874188,-1104.14,0.00019844,2]
[365053608,1749427874197,-480.0,0.00019844,2]
[365053609,1749427874207,-919.63,0.00019844,2]
[365053610,1749427874216,-480.0,0.00019844,2]
[365053611,1749427874226,-575.12,0.00019844,2]
[365053612,1749427874235,-1497.65,0.00019844,2]
[365053613,1749427874245,-480.0,0.00019844,2]
[365053614,1749427874255,-480.0,0.00019844,2]
[365053615,1749427874264,-539.01,0.00019844,2]
[365053616,1749427874274,-480.0,0.00019844,2]
[365053617,1749427874283,-814.01,0.00019844,2]
[365053618,1749427874293,-933.84,0.00019844,2]
[365053619,1749427874302,-618.59,0.00019844,2]
[365053620,1749427874311,-1727.89,0.00019844,2]
[365053621,1749427874322,-480.0,0.00019844,2]
[365053622,1749427874332,-480.0,0.00019844,2]
[365053623,1749427874341,-481.04,0.00019844,2]
[365053624,1749427874351,-2360.84,0.00019844,2]
[365053625,1749427874361,-480.0,0.00019844,2]
[365053626,1749427874370,-480.0,0.00019845,2]
[365053627,1749427874379,-483.56,0.00019845,2]
[365053628,1749427874389,-480.0,0.00019845,2]
[365053629,1749427874398,-480.0,0.00019845,2]
[365053630,1749427874407,-480.0,0.00019845,2]
[365053631,1749427874417,-480.0,0.00019845,2]
[365053632,1749427874426,-430.43264577,0.00019845,2]
[365053633,1749427874436,-480.0,0.00019845,2]
[365053634,1749427874445,-480.0,0.00019845,2]
[365053635,1749427874454,-459.73713642,0.00019845,2]
[365053636,1749427874464,-480.0,0.00019845,2]
[365053637,1749427874473,-480.0,0.00019845,2]
[365053638,1749427874482,-480.0,0.00019845,2]
[365053639,1749427874492,-480.0,0.00019845,2]
[365053640,1749427874501,-480.0,0.00019845,2]
[365053641,1749427874511,-480.0,0.00019845,2]
[365053642,1749427874520,-531.54,0.00019845,2]
[365053643,1749427874529,-280.91075356,0.00019845,2]
[365053644,1749427874539,-420.0,0.00019845,2]
[365053645,1749427874548,-480.0,0.00019845,2]
[365053646,1749427874557,-480.0,0.00019845,2]
[365053647,1749427874566,-480.0,0.00019845,2]
[365053648,1749427874575,-420.0,0.00019845,2]
[365053649,1749427874585,-480.0,0.00019845,2]
[365053650,1749427874594,-480.0,0.00019845,2]
[365053651,1749427874603,-480.0,0.00019845,2]
[365053652,1749427874613,-480.0,0.00019845,2]
[365053653,1749427874623,-480.0,0.00019845,2]
[365053654,1749427874633,-480.0,0.00019845,2]
[365053655,1749427874643,-265.72531159,0.00019845,2]
[365053656,1749427874654,-610.9,0.00019845,2]
[365053657,1749427874663,-480.0,0.00019845,2]
[365053658,1749427874673,-480.0,0.00019845,2]
[365053659,1749427874683,-480.0,0.00019845,2]
[365053660,1749427874692,-480.0,0.00019845,2]
[365053661,1749427874702,-300.0,0.00019845,2]
[365053662,1749427874711,-480.0,0.00019845,2]
[365053663,1749427874720,-516.58,0.00019845,2]
[365053664,1749427874731,-480.0,0.00019845,2]
[365053665,1749427874740,-480.0,0.00019845,2]
[365053666,1749427874749,-480.0,0.00019845,2]
[365053667,1749427874762,-538.68,0.00019845,2]
[365053668,1749427874772,-480.0,0.00019845,2]
[365053669,1749427874781,-1954.47,0.00019845,2]
[365053670,1749427874791,-480.0,0.00019845,2]
[365053671,1749427874803,-480.0,0.00019845,2]
[365053672,1749427874812,-480.0,0.00019845,2]
[365053673,1749427874822,-519.52709805,0.00019845,2]
[365053674,1749427874833,-480.0,0.00019845,2]
[365053675,1749427874843,-480.0,0.00019845,2]
[365053676,1749427874852,-480.0,0.00019845,2]
[365053677,1749427874862,-480.0,0.00019845,2]
[365053678,1749427874872,-480.0,0.00019845,2]
[365053679,1749427874881,-480.0,0.00019845,2]
[365053680,1749427874892,-480.0,0.00019845,2]
[365053681,1749427874903,-648.05,0.00019845,2]
[365053682,1749427874913,-176.28398895,0.00019845,2]
[365053683,1749427874923,-672.63,0.00019845,2]
[365053684,1749427874934,-480.0,0.00019845,2]
[365053685,1749427874944,-480.0,0.00019845,2]
[365053686,1749427874954,-480.0,0.00019845,2]
[365053687,1749427874964,-666.1,0.00019845,2]
[365053688,1749427874973,-299.9270195,0.00019845,2]
[365053689,1749427874983,-480.0,0.00019845,2]
[365053690,1749427874993,-480.0,0.00019845,2]
[365053691,1749427875003,-809.76,0.00019845,2]
[365053692,1749427875015,-480.0,0.00019845,2]
[365053693,1749427875025,-480.0,0.00019845,2]
[365053694,1749427875035,-480.0,0.00019845,2]
[365053695,1749427875045,-355.5,0.00019845,2]
[365053696,1749427875054,-180.0,0.00019845,2]
[365053697,1749427875063,-480.0,0.00019845,2]
[365053698,1749427875073,-480.0,0.00019845,2]
[365053699,1749427875083,-480.0,0.00019845,2]
[365053700,1749427875092,-480.0,0.00019845,2]
[365053701,1749427875102,-585.97,0.00019845,2]